bitfinex/quotes_SOLUSD_20220211
["timestamp","ask_amount","ask_price","bid_price","bid_amount"]
[1644586530170,5.96826098,107.65,107.55,21.058]
[1644586530570,46.04489571,107.64,107.56,36.23893077]
[1644586530772,18.5935,107.63,107.57,13.947]
[1644586531575,18.5935,107.63,107.56,61.04783077]
[1644586531774,18.5935,107.63,107.56,65.69483077]
[1644586532777,18.5935,107.63,107.56,79.64303077]
[1644586533781,18.5935,107.63,107.56,43.4041]
[1644586534783,18.5935,107.63,107.56,79.60860786]
[1644586535295,18.5935,107.63,107.56,74.96160786]
[1644586535980,18.5935,107.63,107.56,38.7571]
[1644586536581,18.5935,107.63,107.56,24.8089]
[1644586539698,20.97716791,107.63,107.56,24.8089]
[1644586540497,67.97716791,107.63,107.56,24.8089]
[1644586540895,67.97716791,107.63,107.54,28.7622]
[1644586541097,69.29842889,107.63,107.54,24.1152]
[1644586541497,67.97716791,107.63,107.54,24.1152]
[1644586542002,69.29842889,107.63,107.54,24.1152]
[1644586542197,65.5935,107.63,107.54,24.1152]
[1644586542397,65.5935,107.63,107.55,22.8296]
[1644586542797,18.5935,107.63,107.55,22.8296]
[1644586543898,18.5935,107.63,107.54,45.09686791]
[1644586544098,18.5935,107.63,107.54,31.14586791]
[1644586544523,65.5935,107.63,107.54,28.7622]
[1644586544727,65.5935,107.63,107.54,53.69]
[1644586544924,66.91476098,107.63,107.54,53.69]
[1644586547229,18.5935,107.63,107.54,56.07366791]
[1644586547431,18.5935,107.63,107.54,2.38366791]
[1644586547630,18.5935,107.63,107.52,18.067]
[1644586547631,31.98816791,107.63,107.52,18.067]
[1644586547831,1.32126098,107.61,107.51,13.42]
[1644586548032,1.32126098,107.61,107.5,28.6903]
[1644586548033,13.9572,107.59,107.5,28.6903]
[1644586548230,4.649,107.58,107.5,24.0433]
[1644586548431,48.1861441,107.57,107.5,63.60761946]
[1644586548834,4.649,107.59,107.5,65.99128737]
[1644586549131,23.573,107.6,107.51,13.42]
[1644586549331,4.648,107.63,107.52,22.5667]
[1644586549533,4.648,107.63,107.53,13.42]
[1644586549732,40.82269791,107.62,107.54,5.36144515]
[1644586549941,40.82269791,107.62,107.55,13.67]
[1644586550133,54.77109791,107.62,107.55,27.6185]
[1644586552244,13.9484,107.62,107.56,4.647]
[1644586552444,13.9484,107.62,107.56,18.5943]
[1644586552841,13.947,107.63,107.56,18.5943]
[1644586553043,13.947,107.63,107.57,0.25]
[1644586553346,13.947,107.63,107.58,35.74199882]
[1644586554146,13.947,107.63,107.57,41.38156791]
[1644586554442,18.593,107.63,107.57,41.38156791]
[1644586555644,18.593,107.63,107.57,24.8014]
[1644586557452,25.0,107.61,107.52,97.36409844]
[1644586557651,4.648,107.6,107.51,1.2865601]
[1644586557853,13.9526,107.59,107.49,1.3105601]
[1644586558051,13.9526,107.59,107.49,0.024]
[1644586558253,7.03266791,107.58,107.47,14.7065601]
[1644586558456,43.74381995,107.57,107.49,0.024]
[1644586558653,4.649,107.56,107.48,40.77678952]
[1644586558853,47.48105321,107.55,107.49,0.024]
[1644586559856,69.2592,107.58,107.49,0.024]
[1644586560057,4.649,107.57,107.49,0.274]
[1644586560256,22.7323,107.58,107.49,0.274]
[1644586560561,4.649,107.57,107.49,0.024]
[1644586560756,13.9592,107.54,107.49,0.024]
[1644586560961,36.16295615,107.53,107.49,0.024]
[1644586562155,4.65,107.52,107.47,0.024]
[1644586562563,4.65,107.52,107.44,1.3105601]
[1644586562757,4.65,107.52,107.45,0.024]
[1644586562983,45.54064375,107.51,107.44,44.40438425]
[1644586563157,4.652,107.5,107.45,0.024]
[1644586563459,4.652,107.5,107.44,44.42838425]
[1644586564760,18.6162,107.5,107.44,44.42838425]
[1644586565758,18.6162,107.5,107.44,58.39288425]
[1644586565962,47.79884724,107.49,107.44,58.39288425]
[1644586566162,47.79884724,107.49,107.44,13.9885]
[1644586566360,54.97784724,107.49,107.44,0.024]
[1644586566862,4.652,107.48,107.42,0.024]
[1644586567259,70.2645,107.51,107.42,0.024]
[1644586567759,70.2645,107.51,107.42,13.9909]
[1644586567959,23.2645,107.51,107.43,0.024]
[1644586568159,35.3620913,107.5,107.42,42.72683536]
[1644586568361,40.0140913,107.5,107.43,0.024]
[1644586568564,4.652,107.5,107.43,0.024]
[1644586568761,4.652,107.5,107.43,0.274]
[1644586568962,4.652,107.5,107.43,14.2393]
[1644586569562,4.652,107.5,107.44,45.08965778]
[1644586569762,58.29183492,107.51,107.44,45.08965778]
[1644586569962,62.94383492,107.51,107.45,0.024]
[1644586570164,58.29183492,107.51,107.45,0.024]
[1644586570364,23.2645,107.51,107.45,0.024]
[1644586570591,37.4883,107.54,107.45,0.024]
[1644586570796,4.651,107.53,107.45,0.274]
[1644586570996,4.651,107.53,107.46,0.024]
[1644586571494,4.651,107.55,107.47,13.42]
[1644586571693,35.31603359,107.56,107.48,43.06293813]
[1644586571893,35.31603359,107.56,107.49,0.024]
[1644586572094,4.65,107.55,107.49,0.024]
[1644586572399,45.71373779,107.54,107.49,0.024]
[1644586572895,4.65,107.55,107.48,57.24803813]
[1644586573093,29.3185,107.58,107.48,56.99803813]
[1644586573294,29.3185,107.58,107.49,0.024]
[1644586573695,13.9591,107.56,107.49,0.024]
[1644586573900,49.77380181,107.55,107.49,0.024]
[1644586574294,49.77380181,107.55,107.47,0.024]
[1644586574494,72.99560181,107.55,107.44,38.0225]
[1644586574694,72.99560181,107.55,107.45,0.024]
[1644586574895,72.99560181,107.55,107.45,0.274]
[1644586575094,72.99560181,107.55,107.46,0.024]
[1644586575695,86.95620181,107.55,107.46,38.7541]
[1644586575996,86.95620181,107.55,107.47,37.01417698]
[1644586576197,86.95620181,107.55,107.48,0.024]
[1644586578298,72.99560181,107.55,107.48,0.024]
[1644586578901,27.8718,107.55,107.48,0.024]
[1644586579099,23.2218,107.55,107.48,0.024]
[1644586579299,23.2218,107.55,107.48,14.2328]
[1644586579498,23.2218,107.55,107.49,0.024]
[1644586579902,72.02203584,107.55,107.49,44.29905787]
[1644586580699,76.67203584,107.55,107.49,44.29905787]
[1644586581900,27.8718,107.55,107.49,44.29905787]
[1644586583006,75.44093566,107.55,107.49,44.29905787]
[1644586584310,23.2218,107.55,107.49,44.29905787]
[1644586584504,23.2218,107.55,107.49,58.25695787]
[1644586585005,23.2218,107.55,107.49,44.29905787]
[1644586585204,60.24756302,107.55,107.49,44.29905787]
[1644586585603,23.2218,107.55,107.49,44.29905787]
[1644586585804,23.2218,107.55,107.5,0.25]
[1644586586107,4.65,107.59,107.5,0.024]
[1644586586306,4.65,107.59,107.5,23.3261]
[1644586586707,61.90350388,107.58,107.51,44.75934835]
[1644586586905,4.649,107.57,107.51,44.75934835]
[1644586588508,4.649,107.57,107.51,58.71504835]
[1644586589710,13.9545,107.59,107.51,58.71504835]
[1644586589910,51.7164,107.6,107.52,38.5057]
[1644586590113,47.0674,107.6,107.54,13.9514]
[1644586590312,47.0674,107.6,107.55,0.25]
[1644586590518,47.52974434,107.63,107.55,38.59670127]
[1644586590714,4.647,107.62,107.55,38.34670127]
[1644586590913,45.80974665,107.61,107.55,38.34670127]
[1644586591314,45.09404424,107.61,107.55,38.34670127]
[1644586592419,47.52974434,107.59,107.55,38.34670127]
[1644586592821,13.9514,107.62,107.55,38.34670127]
[1644586593818,38.82605366,107.61,107.55,38.34670127]
[1644586594019,52.77775366,107.61,107.55,38.34670127]
[1644586595422,4.647,107.6,107.55,38.34670127]
[1644586595624,4.647,107.6,107.54,38.2436]
[1644586595822,18.6002,107.6,107.54,24.2918]
[1644586596221,4.647,107.6,107.54,24.2918]
[1644586596625,4.647,107.6,107.55,36.34326829]
[1644586597441,39.73259217,107.59,107.52,13.42]
[1644586597642,39.73259217,107.59,107.51,0.024]
[1644586597843,4.649,107.58,107.51,6.024]
[1644586598043,4.649,107.58,107.51,0.024]
[1644586598543,4.649,107.58,107.51,38.64587924]
[1644586598744,18.6047,107.58,107.51,52.60147924]
[1644586599343,42.7306,107.58,107.51,52.60147924]
[1644586600343,35.78322477,107.57,107.51,52.60147924]
[1644586601446,49.74022477,107.57,107.51,0.024]
[1644586601646,4.649,107.56,107.51,0.024]
[1644586601845,4.649,107.56,107.5,24.0327]
[1644586602343,34.8649686,107.55,107.5,65.9835153]
[1644586602743,4.65,107.54,107.5,65.9835153]
[1644586602945,4.65,107.54,107.5,24.0567]
[1644586603144,4.65,107.54,107.5,24.0327]
[1644586604747,40.09859417,107.53,107.5,24.0327]
[1644586605445,40.09859417,107.53,107.51,3.03219997]
[1644586605845,40.09859417,107.53,107.49,13.9823]
[1644586606746,4.65,107.54,107.49,13.9823]
[1644586607146,4.65,107.57,107.49,13.9823]
[1644586607448,24.1259,107.58,107.51,13.9551]
[1644586607449,28.7759,107.58,107.51,13.9551]
[1644586607646,24.1259,107.58,107.51,13.9791]
[1644586607845,65.58557105,107.58,107.52,34.84022445]
[1644586608446,65.58557105,107.58,107.52,48.79492445]
[1644586609449,4.649,107.57,107.52,48.79492445]
[1644586611749,4.649,107.57,107.52,34.84022445]
[1644586611750,18.6055,107.57,107.52,34.84022445]
[1644586611953,18.6055,107.57,107.51,0.024]
[1644586612150,18.6055,107.57,107.49,0.024]
[1644586612350,18.6055,107.57,107.49,0.274]
[1644586612549,18.6055,107.57,107.5,0.024]
[1644586612950,34.28802093,107.56,107.5,0.024]
[1644586613153,13.9581,107.55,107.5,0.024]
[1644586613349,13.9581,107.55,107.5,43.76228856]
[1644586613549,13.9581,107.55,107.5,43.73828856]
[1644586613750,13.9581,107.55,107.5,43.76228856]
[1644586614553,4.65,107.54,107.5,43.76228856]
[1644586615053,4.65,107.54,107.5,57.71978856]
[1644586615253,34.28802093,107.56,107.5,57.21978856]
[1644586615757,4.65,107.57,107.5,57.21978856]
[1644586615953,24.1259,107.58,107.5,57.21978856]
[1644586615954,24.1259,107.58,107.51,0.274]
[1644586616555,43.29737173,107.57,107.52,36.96971388]
[1644586616756,47.94637173,107.57,107.52,36.96971388]
[1644586617657,24.1259,107.58,107.52,50.92471388]
[1644586618855,28.7749,107.58,107.52,50.92471388]
[1644586619356,24.1259,107.58,107.52,50.92471388]
[1644586620459,28.7749,107.58,107.52,50.92471388]
[1644586620860,4.649,107.58,107.53,0.25]
[1644586621156,4.649,107.61,107.55,13.9513]
[1644586621357,27.5657,107.62,107.55,13.9513]
[1644586621756,70.11781509,107.62,107.56,39.81027095]
[1644586621956,13.9506,107.61,107.56,39.81027095]
[1644586623764,41.515,107.62,107.56,53.76017095]
[1644586623961,36.867,107.62,107.56,64.92117095]
[1644586624559,60.5392384,107.62,107.56,64.92117095]
[1644586624760,22.9177,107.62,107.56,64.92117095]
[1644586625661,65.50654321,107.62,107.56,64.92117095]
[1644586626867,22.9177,107.62,107.56,64.92117095]
[1644586627066,22.9177,107.62,107.56,64.42117095]
[1644586628966,27.8873,107.64,107.58,13.946]
[1644586629166,23.2403,107.64,107.58,13.946]
[1644586629568,23.2403,107.64,107.59,42.46753146]
[1644586629767,4.646,107.65,107.59,42.46753146]
[1644586629967,48.32126098,107.68,107.59,42.46753146]
[1644586629968,4.644,107.68,107.61,13.9422]
[1644586630666,4.644,107.68,107.62,34.79228947]
[1644586630867,60.51237992,107.69,107.62,34.79228947]
[1644586631069,13.9416,107.69,107.62,45.83428947]
[1644586631271,13.9416,107.69,107.62,59.77548947]
[1644586631469,4.644,107.7,107.62,59.77548947]
[1644586631669,4.644,107.7,107.62,62.15915738]
[1644586631867,4.644,107.7,107.62,48.21795738]
[1644586632068,4.644,107.7,107.63,0.25]
[1644586632469,4.644,107.7,107.63,14.1886]
[1644586632669,4.644,107.73,107.63,50.7228]
[1644586633468,37.66854958,107.72,107.64,37.49919022]
[1644586633770,40.78501807,107.7,107.64,37.49919022]
[1644586633970,4.643,107.69,107.61,13.9407]
[1644586634169,4.643,107.69,107.61,51.8352]
[1644586634970,4.643,107.69,107.62,40.55582533]
[1644586635169,7.02666791,107.69,107.62,40.55582533]
[1644586635370,2.38366791,107.69,107.62,40.55582533]
[1644586635569,4.644,107.68,107.62,40.55582533]
[1644586636171,39.90216283,107.67,107.62,40.55582533]
[1644586637373,4.644,107.66,107.62,40.55582533]
[1644586637996,39.90216283,107.67,107.62,40.55582533]
[1644586638395,13.9429,107.68,107.62,40.55582533]
[1644586639296,55.54368101,107.68,107.62,40.55582533]
[1644586640899,4.644,107.67,107.62,40.55582533]
[1644586641596,18.585,107.7,107.62,54.49652533]
[1644586641798,13.941,107.7,107.63,23.3517]
[1644586641997,13.941,107.7,107.64,39.27441538]
[1644586642901,4.644,107.71,107.64,39.27441538]
[1644586643098,18.5826,107.71,107.64,39.27441538]
[1644586643298,4.644,107.71,107.65,0.25]
[1644586643897,24.7633,107.72,107.65,0.25]
[1644586644097,4.643,107.73,107.65,0.25]
[1644586644299,4.643,107.73,107.65,19.67]
[1644586644497,4.643,107.73,107.65,46.52136791]
[1644586644899,4.643,107.73,107.65,44.1377]
[1644586645097,4.643,107.73,107.66,38.12151629]
[1644586645303,0.46632466,107.74,107.68,13.9328]
[1644586646403,0.46632466,107.74,107.69,35.20007424]
[1644586647403,0.46632466,107.74,107.68,13.9328]
[1644586647605,4.642,107.73,107.66,37.4101]
[1644586647804,4.642,107.73,107.66,23.4756]
[1644586648408,48.15534832,107.72,107.67,47.62559977]
[1644586648605,4.642,107.71,107.67,47.62559977]
[1644586650907,18.58,107.71,107.67,47.12559977]
[1644586651105,18.58,107.71,107.64,38.0447]
[1644586652010,42.88491518,107.7,107.64,45.98504095]
[1644586652209,18.5835,107.69,107.64,45.98504095]
[1644586652407,18.5835,107.69,107.62,37.9714]
[1644586652806,42.88491518,107.7,107.63,0.25]
[1644586653025,24.9009,107.71,107.63,0.25]
[1644586653722,24.9009,107.71,107.65,13.937]
[1644586654123,73.32078755,107.71,107.66,36.42962791]
[1644586654525,48.41988755,107.71,107.66,36.42962791]
[1644586655128,62.35728755,107.71,107.66,36.42962791]
[1644586655324,13.9374,107.71,107.66,36.42962791]
[1644586655523,4.643,107.73,107.66,36.42962791]
[1644586655723,4.643,107.73,107.66,50.36532791]
[1644586656123,18.5791,107.73,107.66,50.36532791]
[1644586656928,36.18460674,107.72,107.66,50.36532791]
[1644586657827,50.12080674,107.72,107.66,50.36532791]
[1644586658128,4.642,107.71,107.66,50.36532791]
[1644586659333,50.12080674,107.72,107.66,50.36532791]
[1644586661237,13.9362,107.72,107.66,50.36532791]
[1644586661538,4.643,107.73,107.66,50.36532791]
[1644586661737,18.578,107.73,107.66,50.36532791]
[1644586662139,36.48264199,107.72,107.66,50.36532791]
[1644586663239,50.41854199,107.72,107.66,50.36532791]
[1644586663440,4.642,107.71,107.66,50.36532791]
[1644586663841,38.56514293,107.7,107.66,13.9357]
[1644586664562,4.642,107.71,107.66,13.9357]
[1644586664864,13.9359,107.72,107.66,13.9357]
[1644586665064,13.9348,107.73,107.66,13.9357]
[1644586665463,13.9348,107.73,107.67,46.62383722]
[1644586665667,13.9348,107.73,107.67,60.55823722]
[1644586666062,34.19987048,107.72,107.67,60.55823722]
[1644586666265,52.77757048,107.72,107.67,60.55823722]
[1644586666563,34.19987048,107.72,107.67,46.62383722]
[1644586667466,34.19987048,107.72,107.67,60.55883722]
[1644586667862,18.5765,107.73,107.67,60.55883722]
[1644586669967,44.07062108,107.72,107.67,60.55883722]
[1644586671168,13.9345,107.73,107.67,60.55883722]
[1644586672367,57.89290392,107.72,107.67,60.55883722]
[1644586672568,62.53490392,107.72,107.67,60.55883722]
[1644586673266,57.89290392,107.72,107.67,60.55883722]
[1644586673467,57.89290392,107.72,107.66,23.1948]
[1644586673667,18.5788,107.71,107.66,23.1948]
[1644586674066,4.642,107.71,107.66,23.1948]
[1644586674466,48.60010392,107.72,107.67,44.85809663]
[1644586675170,62.53540392,107.72,107.66,23.1948]
[1644586675567,57.89240392,107.72,107.66,23.1948]
[1644586675867,59.21432251,107.72,107.66,23.1948]
[1644586676065,59.21432251,107.72,107.66,62.36970877]
[1644586676466,59.21432251,107.72,107.66,23.1948]
[1644586676767,59.21432251,107.72,107.66,37.1308]
[1644586677665,59.21432251,107.72,107.67,35.54366252]
[1644586678066,57.89240392,107.72,107.67,35.54366252]
[1644586678267,59.21432251,107.72,107.67,35.54366252]
[1644586678466,59.21432251,107.72,107.66,37.1308]
[1644586679471,4.642,107.71,107.66,37.1308]
[1644586679668,35.8332291,107.7,107.66,37.1308]
[1644586680070,18.5786,107.71,107.66,37.1308]
[1644586680270,1.32191859,107.73,107.66,37.1308]
[1644586680870,15.25591859,107.73,107.66,37.1308]
[1644586681069,46.81823914,107.72,107.66,37.1308]
[1644586681271,52.78215773,107.72,107.67,35.68620662]
[1644586681473,46.81823914,107.72,107.67,35.68620662]
[1644586681671,48.14015773,107.72,107.67,49.62180662]
[1644586681873,46.81823914,107.72,107.67,49.62180662]
[1644586682272,48.14015773,107.72,107.67,49.62180662]
[1644586682675,62.07605773,107.72,107.67,49.62180662]
[1644586682875,60.75413914,107.72,107.67,49.62180662]
[1644586686781,13.9359,107.72,107.67,49.62180662]
[1644586689385,51.47520185,107.71,107.67,49.62180662]
[1644586689588,3.3706405,107.68,107.67,49.12180662]
[1644586689787,3.3706405,107.68,107.67,55.18620656]
[1644586691190,3.3706405,107.68,107.67,55.43620656]
[1644586691789,13.9336,107.73,107.67,55.43620656]
[1644586691990,13.9336,107.73,107.67,78.88250656]
[1644586692191,13.9336,107.73,107.68,0.25]
[1644586692392,13.9336,107.73,107.69,13.9326]
[1644586692794,13.9336,107.73,107.69,60.94768369]
[1644586694893,13.9336,107.73,107.68,13.9342]
[1644586695094,4.642,107.72,107.68,13.9342]
[1644586695695,45.19697066,107.74,107.68,13.9342]
[1644586695696,4.642,107.73,107.68,13.9342]
[1644586695896,4.642,107.73,107.68,51.08604304]
[1644586696097,41.17784493,107.72,107.68,51.08604304]
[1644586697795,55.11264493,107.72,107.68,51.08604304]
[1644586698014,41.17784493,107.72,107.68,51.08604304]
[1644586698915,41.17784493,107.72,107.68,13.9342]
[1644586699115,41.17784493,107.72,107.67,37.3818]
[1644586699316,4.642,107.71,107.67,37.3818]
[1644586699916,40.63373986,107.7,107.67,37.3818]
[1644586700317,4.642,107.71,107.67,37.3818]
[1644586701417,39.07139152,107.71,107.67,37.3818]
[1644586701620,48.36509152,107.71,107.67,37.3818]
[1644586704827,4.642,107.7,107.67,23.4463]
[1644586705027,46.85045439,107.69,107.67,23.4463]
[1644586705224,46.85045439,107.69,107.66,13.9367]
[1644586706728,18.5788,107.7,107.66,13.9367]
[1644586706929,13.9368,107.7,107.66,13.9367]
[1644586707729,49.62212474,107.7,107.66,13.9367]
[1644586709532,13.9368,107.7,107.66,13.9367]
[1644586710532,13.9368,107.7,107.67,34.6725197]
[1644586710733,13.9368,107.7,107.68,6.06439994]
[1644586711735,13.9368,107.7,107.66,13.9367]
[1644586712635,46.23290552,107.69,107.66,13.9367]
[1644586713240,46.23290552,107.69,107.67,6.06439994]
[1644586714339,46.23290552,107.69,107.67,3.03219997]
[1644586715038,13.9368,107.7,107.67,3.03219997]
[1644586715240,13.9368,107.7,107.68,3.03219997]
[1644586715941,13.9368,107.7,107.69,3.03219997]
[1644586716144,24.1686,107.72,107.68,3.03219997]
[1644586716344,1.78824325,107.74,107.68,3.03219997]
[1644586716742,0.46632466,107.74,107.68,3.03219997]
[1644586717146,47.17175586,107.74,107.69,46.99527544]
[1644586717343,13.9333,107.73,107.69,60.92787544]
[1644586718444,13.9333,107.73,107.69,13.9326]
[1644586718645,18.5753,107.73,107.69,13.9326]
[1644586719345,18.5753,107.73,107.69,49.0421497]
[1644586722356,4.642,107.73,107.69,49.0421497]
[1644586723752,18.5752,107.73,107.69,49.0421497]
[1644586725380,13.9332,107.73,107.69,49.0421497]
[1644586725780,19.04062466,107.74,107.69,49.0421497]
[1644586731185,37.91466743,107.73,107.69,49.0421497]
[1644586731387,51.84766743,107.73,107.69,49.0421497]
[1644586731586,51.84766743,107.73,107.69,13.9326]
[1644586732686,13.933,107.73,107.69,13.9326]
[1644586732886,19.04052466,107.74,107.69,13.9326]
[1644586733089,19.04052466,107.74,107.69,37.7554]
[1644586733689,62.09054261,107.74,107.69,37.7554]
[1644586734388,62.09054261,107.74,107.7,42.71907242]
[1644586739998,19.04052466,107.74,107.7,42.71907242]
[1644586740198,19.04052466,107.74,107.69,37.7554]
[1644586740199,19.04052466,107.74,107.69,13.9326]
[1644586740399,19.04052466,107.74,107.65,70.5427]
[1644586740697,20.36244325,107.74,107.65,24.0946]
[1644586741400,48.73336555,107.71,107.66,35.97461105]
[1644586741598,4.643,107.7,107.66,35.97461105]
[1644586741798,34.79726555,107.71,107.66,35.97461105]
[1644586742000,4.643,107.7,107.66,35.97461105]
[1644586742501,13.9378,107.7,107.66,35.97461105]
[1644586746033,18.5808,107.7,107.66,35.97461105]
[1644586747832,18.5808,107.7,107.65,38.0319]
[1644586748834,18.5808,107.7,107.65,72.85832346]
[1644586751637,39.23089417,107.69,107.65,72.85832346]
[1644586752041,39.23089417,107.69,107.65,13.9373]
[1644586752238,61.00029417,107.69,107.64,13.9387]
[1644586752439,4.644,107.68,107.62,1.2919107]
[1644586752640,4.644,107.68,107.61,24.296]
[1644586752641,28.3086,107.68,107.61,24.296]
[1644586752844,28.3086,107.68,107.59,13.42]
[1644586753042,35.46489755,107.67,107.6,46.47338239]
[1644586753241,4.644,107.66,107.6,46.47338239]
[1644586753544,50.2631188,107.65,107.6,46.47338239]
[1644586758248,50.2631188,107.65,107.6,60.41688239]
[1644586758646,36.3189188,107.65,107.6,60.41688239]
[1644586760859,59.5261188,107.65,107.59,24.296]
[1644586761151,4.644,107.64,107.59,24.296]
[1644586761350,36.3189188,107.65,107.59,24.296]
[1644586761774,36.3189188,107.65,107.6,40.38154403]
[1644586762152,13.9464,107.64,107.6,40.38154403]
[1644586764155,54.9073188,107.65,107.6,40.38154403]
[1644586764863,54.9073188,107.65,107.59,38.2404]
[1644586765362,54.9073188,107.65,107.59,24.296]
[1644586765660,64.1353188,107.65,107.58,0.024]
[1644586765860,59.01616439,107.63,107.58,0.024]
[1644586766061,38.73497292,107.61,107.56,0.024]
[1644586766258,38.73497292,107.61,107.55,70.85208204]
[1644586766464,38.73497292,107.61,107.56,0.024]
[1644586766660,38.73497292,107.61,107.55,70.85208204]
[1644586767059,4.647,107.63,107.55,84.80198204]
[1644586767263,4.647,107.63,107.56,0.024]
[1644586767961,39.66424735,107.63,107.56,0.024]
[1644586768161,13.9481,107.62,107.57,2.38366791]
[1644586768361,13.9481,107.62,107.57,2.40766791]
[1644586768762,4.647,107.61,107.57,0.024]
[1644586768963,4.647,107.61,107.55,37.418]
[1644586769161,37.88971546,107.6,107.55,76.35860899]
[1644586769377,37.88971546,107.6,107.55,37.418]
[1644586769777,51.84011546,107.6,107.55,51.3677]
[1644586770579,51.84011546,107.6,107.55,37.418]
[1644586770780,51.84011546,107.6,107.54,0.024]
[1644586770981,4.648,107.59,107.54,0.024]
[1644586771185,13.9541,107.58,107.53,2.40766791]
[1644586771385,4.648,107.57,107.53,2.40766791]
[1644586771581,44.19736119,107.56,107.52,0.024]
[1644586772082,58.15396119,107.56,107.52,0.024]
[1644586772283,58.15396119,107.56,107.5,0.024]
[1644586772482,4.65,107.55,107.5,0.024]
[1644586772692,48.63083691,107.54,107.49,63.32904309]
[1644586772884,48.63083691,107.54,107.49,2.40766791]
[1644586773283,13.958,107.55,107.49,2.40766791]
[1644586773486,4.65,107.57,107.5,0.024]
[1644586773682,4.65,107.57,107.5,0.274]
[1644586773882,4.649,107.58,107.51,2.40766791]
[1644586774282,35.22196058,107.57,107.52,2.63366791]
[1644586774684,35.22196058,107.57,107.53,2.38366791]
[1644586775086,35.22196058,107.57,107.52,13.9532]
[1644586775287,35.22196058,107.57,107.51,0.024]
[1644586775484,4.649,107.56,107.51,0.024]
[1644586775783,35.22196058,107.57,107.5,24.7448]
[1644586775985,4.649,107.58,107.51,2.40766791]
[1644586776183,4.649,107.59,107.51,21.82766791]
[1644586776385,22.9054,107.6,107.53,13.952]
[1644586776586,22.9054,107.6,107.54,0.024]
[1644586776784,22.9054,107.6,107.54,0.274]
[1644586776985,22.9054,107.6,107.54,47.98650828]
[1644586777184,52.65255348,107.61,107.54,56.37017619]
[1644586777384,4.649,107.61,107.55,6.0]
[1644586777584,4.647,107.64,107.56,13.42]
[1644586777888,4.646,107.65,107.57,6.0]
[1644586778086,13.944,107.66,107.58,13.42]
[1644586778087,18.59,107.66,107.58,13.42]
[1644586778284,39.87937453,107.65,107.59,50.7088808]
[1644586778484,4.646,107.66,107.6,13.9429]
[1644586778687,4.644,107.68,107.6,14.1929]
[1644586778887,4.644,107.68,107.6,39.36756791]
[1644586779085,4.644,107.68,107.61,2.38366791]
[1644586779285,18.5865,107.68,107.59,60.51254871]
[1644586779485,37.34486385,107.67,107.59,74.45754871]
[1644586779685,4.644,107.66,107.59,13.42]
[1644586780589,48.70592394,107.65,107.6,39.39167049]
[1644586780888,4.144,107.68,107.6,52.81167049]
[1644586781287,4.144,107.68,107.6,13.42]
[1644586781487,4.144,107.68,107.58,10.606]
[1644586781488,6.52766791,107.68,107.58,0.024]
[1644586781688,23.0472,107.67,107.58,0.024]
[1644586781890,4.644,107.66,107.58,0.024]
[1644586782288,62.06838722,107.65,107.56,0.024]
[1644586782492,4.646,107.64,107.59,0.024]
[1644586782689,42.58885718,107.63,107.56,0.024]
[1644586782898,13.9519,107.61,107.56,0.024]
[1644586783093,4.647,107.6,107.55,0.024]
[1644586783290,4.647,107.6,107.54,36.78]
[1644586783491,4.647,107.6,107.53,0.024]
[1644586783692,4.648,107.61,107.52,0.024]
[1644586783890,45.15656031,107.59,107.52,13.9769]
[1644586784091,40.50756031,107.59,107.53,43.87288547]
[1644586784491,40.50756031,107.59,107.53,43.84888547]
[1644586785294,12.0,107.57,107.46,2.58239199]
[1644586785493,40.17934,107.56,107.39,2.58759143]
[1644586785699,4.859,107.53,107.37,46.6302]
[1644586785899,18.072,107.52,107.38,13.42]
[1644586786094,45.56026954,107.52,107.38,13.42]
[1644586786301,33.76812277,107.51,107.39,35.86024257]
[1644586786492,1.75060849,107.49,107.39,35.86024257]